lending/lending_fUSD_20250913
["ID","MTS","AMOUNT","RATE_DAILY","PERIOD"]
[385296104,1757754640332,-400.0,0.00031616,2]
[385296106,1757754640341,-400.0,0.00031616,2]
[385296108,1757754640351,-400.0,0.00031616,2]
[385296110,1757754640360,-400.0,0.00031616,2]
[385296112,1757754640370,-400.0,0.00031616,2]
[385296114,1757754640379,-400.0,0.00031616,2]
[385296115,1757754640388,-400.0,0.00031616,2]
[385296116,1757754640398,-32.48731264,0.00031616,2]
[385296117,1757754640442,-595.29268736,0.00031616,2]
[385296118,1757754640451,-497.22,0.00031616,2]
[385296119,1757754640460,-400.0,0.00031616,2]
[385296120,1757754640470,-438.75701087,0.00031616,2]
[385296121,1757754640480,-540.52,0.00031616,2]
[385296122,1757754640489,-400.0,0.00031616,2]
[385296123,1757754640498,-400.0,0.00031616,2]
[385296124,1757754640508,-1436.81,0.00031616,2]
[385296125,1757754640517,-400.0,0.00031616,2]
[385296126,1757754640526,-400.0,0.00031616,2]
[385296127,1757754640535,-400.0,0.00031616,2]
[385296128,1757754640544,-400.0,0.00031616,2]
[385296129,1757754640554,-400.0,0.00031616,2]
[385296130,1757754640563,-400.0,0.00031616,2]
[385296131,1757754640572,-400.0,0.00031616,2]
[385296132,1757754640582,-400.0,0.00031616,2]
[385296133,1757754640592,-400.0,0.00031616,2]
[385296135,1757754640601,-400.0,0.00031616,2]
[385296137,1757754640610,-400.0,0.00031616,2]
[385296138,1757754640620,-400.0,0.00031616,2]
[385296139,1757754640630,-400.0,0.00031616,2]
[385296140,1757754640640,-400.0,0.00031616,2]
[385296142,1757754640649,-172.11011617,0.00031616,2]
[385296143,1757754640659,-799.05,0.00031616,2]
[385296145,1757754640668,-400.0,0.00031616,2]
[385296148,1757754640679,-404.63491829,0.00031616,2]
[385296149,1757754640689,-400.0,0.00031616,2]
[385296151,1757754640699,-400.0,0.00031616,2]
[385296153,1757754640708,-400.0,0.00031616,2]
[385296155,1757754640717,-508.66,0.00031616,2]
[385296157,1757754640727,-661.12,0.00031616,2]
[385296159,1757754640736,-400.0,0.00031616,2]
[385296161,1757754640748,-695.99,0.00031616,2]
[385296163,1757754640758,-404.89140167,0.00031616,2]
[385296165,1757754640767,-400.0,0.00031616,2]
[385296167,1757754640777,-406.04675074,0.00031616,2]
[385296169,1757754640787,-444.3,0.00031616,2]
[385296171,1757754640797,-400.0,0.00031616,2]
[385296172,1757754640806,-400.0,0.00031616,2]
[385296174,1757754640816,-486.06,0.00031616,2]
[385296175,1757754640827,-400.0,0.00031616,2]
[385296177,1757754640836,-188.20982133,0.00031616,2]
[385296181,1757754640858,-405.62017867,0.00031616,2]
[385296183,1757754640868,-173.92982133,0.00031616,2]
[385296185,1757754640879,-391.38017867,0.00031616,2]
[385296187,1757754640889,-80.25473317,0.00031616,2]
[385296190,1757754640908,-647.55526683,0.00031616,2]
[385296192,1757754640918,-400.0,0.00031616,2]
[385296193,1757754640927,-400.0,0.00031616,2]
[385296194,1757754640937,-608.85,0.00031616,2]
[385296195,1757754640947,-407.12630932,0.00031616,2]
[385296196,1757754640957,-400.0,0.00031616,2]
[385296197,1757754640966,-400.0,0.00031616,2]
[385296198,1757754640975,-486.19,0.00031616,2]
[385296199,1757754640984,-400.0,0.00031616,2]
[385296200,1757754640994,-400.0,0.00031616,2]
[385296201,1757754641003,-400.0,0.00031616,2]
[385296202,1757754641013,-400.0,0.00031616,2]
[385296203,1757754641023,-400.0,0.00031616,2]
[385296204,1757754641032,-404.38,0.00031616,2]
[385296205,1757754641041,-623.59,0.00031616,2]
[385296206,1757754641050,-398.98846806,0.00031616,2]
[385296207,1757754641059,-400.0,0.00031616,2]
[385296208,1757754641069,-400.0,0.00031616,2]
[385296209,1757754641078,-23.31995579,0.00031616,2]
[385296210,1757754641090,-376.68004421,0.00031616,2]
[385296211,1757754641100,-400.0,0.00031616,2]
[385296212,1757754641109,-196.08512518,0.00031616,2]
[385296213,1757754641118,-400.0,0.00031616,2]
[385296214,1757754641128,-400.0,0.00031616,2]
[385296215,1757754641138,-239.37707755,0.00031616,2]
[385296216,1757754642856,151.0,0.00026224,2]
[385296222,1757754643421,-1700.0,0.000316,11]
[385296223,1757754643431,-160.62292245,0.00031616,2]
[385296224,1757754643441,-569.43,0.00031616,2]
[385296225,1757754643451,-400.0,0.00031616,2]
[385296226,1757754643460,-622.67,0.00031616,2]
[385296227,1757754643470,-435.36,0.00031616,2]
[385296228,1757754643480,-415.17202545,0.00031616,2]
[385296229,1757754643490,-746.1,0.00031616,2]
[385296230,1757754643499,-400.0,0.00031616,2]
[385296231,1757754643508,-400.0,0.00031616,2]
[385296232,1757754643517,-400.0,0.00031616,2]
[385296233,1757754643525,-363.75888602,0.00031616,2]
[385296234,1757754643535,-400.0,0.00031616,2]
[385296235,1757754643544,-411.45302658,0.00031616,2]
[385296236,1757754643553,-400.0,0.00031616,2]
[385296237,1757754643563,-413.56751109,0.00031616,2]
[385296238,1757754643573,-400.0,0.00031616,2]
[385296239,1757754643582,-456.7,0.00031616,2]
[385296240,1757754643591,-400.0,0.00031616,2]
[385296241,1757754643601,-400.0,0.00031616,2]
[385296242,1757754643610,-401.73052253,0.00031616,2]
[385296243,1757754643619,-400.0,0.00031616,2]
[385296244,1757754643629,-536.01,0.00031616,2]
[385296245,1757754643639,-400.0,0.00031616,2]
[385296246,1757754643648,-400.0,0.00031616,2]
[385296247,1757754643657,-480.5958143,0.00031616,2]
[385296248,1757754643667,-411.70910518,0.00031616,2]
[385296249,1757754643677,-400.0,0.00031616,2]
[385296250,1757754643687,-400.0,0.00031616,2]
[385296251,1757754643696,-400.0,0.00031616,2]
[385296252,1757754643706,-577.47,0.00031616,2]
[385296253,1757754643715,-400.0,0.00031616,2]
[385296254,1757754643725,-696.65,0.00031616,2]
[385296255,1757754643735,-566.86,0.00031616,2]
[385296256,1757754643748,-400.0,0.00031616,2]
[385296257,1757754643758,-638.31,0.00031616,2]
[385296258,1757754643767,-400.0,0.00031616,2]
[385296259,1757754643777,-400.0,0.00031616,2]
[385296260,1757754643787,-434.63866911,0.00031616,2]
[385296261,1757754643797,-400.0,0.00031616,2]
[385296262,1757754643806,-400.0,0.00031616,2]
[385296263,1757754643815,-590.18,0.00031616,2]
[385296264,1757754643826,-511.56,0.00031616,2]
[385296265,1757754643836,-400.0,0.00031616,2]
[385296266,1757754643846,-400.0,0.00031616,2]
[385296267,1757754643857,-400.0,0.00031616,2]
[385296269,1757754643866,-400.0,0.00031616,2]
[385296271,1757754643875,-400.0,0.00031616,2]
[385296273,1757754643885,-400.0,0.00031616,2]
[385296275,1757754643901,-400.0,0.00031616,2]
[385296277,1757754643920,-400.0,0.00031616,2]
[385296279,1757754643930,-400.0,0.00031616,2]
[385296281,1757754643939,-400.0,0.00031616,2]
[385296283,1757754643949,-470.44,0.00031616,2]
[385296285,1757754643959,-400.0,0.00031616,2]
[385296287,1757754643968,-400.0,0.00031616,2]
[385296288,1757754643977,-400.0,0.00031616,2]
[385296290,1757754643988,-400.0,0.00031616,2]
[385296292,1757754643999,-400.0,0.00031616,2]
[385296294,1757754644013,-400.0,0.00031616,2]
[385296296,1757754644023,-400.0,0.00031616,2]
[385296298,1757754644036,-400.0,0.00031616,2]
[385296300,1757754644045,-400.0,0.00031616,2]
[385296302,1757754644054,-2090.57,0.00031616,2]
[385296304,1757754644063,-732.26,0.00031616,2]
[385296306,1757754644072,-412.59317889,0.00031616,2]
[385296308,1757754644082,-400.0,0.00031616,2]
[385296310,1757754644092,-446.7,0.00031616,2]
[385296312,1757754644101,-400.0,0.00031616,2]
[385296314,1757754644110,-400.0,0.00031616,2]
[385296316,1757754644119,-519.34607884,0.00031616,2]
[385296318,1757754644128,-400.0,0.00031616,2]
[385296320,1757754644137,-400.0,0.00031616,2]
[385296321,1757754644147,-448.5,0.00031616,2]
[385296322,1757754644156,-400.0,0.00031616,2]
[385296323,1757754644165,-1497.05,0.00031616,2]
[385296324,1757754644174,-400.0,0.00031616,2]
[385296325,1757754644183,-400.0,0.00031616,2]
[385296326,1757754644192,-400.0,0.00031616,2]
[385296327,1757754644202,-442.85,0.00031616,2]
[385296328,1757754644211,-332.88526964,0.00031616,2]
[385296329,1757754644220,-571.6,0.00031616,2]
[385296330,1757754644229,-400.0,0.00031616,2]
[385296331,1757754644240,-400.0,0.00031616,2]
[385296332,1757754644249,-400.0,0.00031616,2]
[385296333,1757754644259,-523.5,0.00031616,2]
[385296334,1757754644268,-510.25,0.00031616,2]
[385296335,1757754644278,-400.0,0.00031616,2]
[385296336,1757754644287,-400.0,0.00031616,2]
[385296337,1757754644297,-402.91672199,0.00031616,2]
[385296338,1757754644307,-400.0,0.00031616,2]
[385296339,1757754644316,-400.0,0.00031616,2]
[385296340,1757754644327,-719.78,0.00031616,2]
[385296341,1757754644336,-400.0,0.00031616,2]
[385296342,1757754644346,-400.0,0.00031616,2]
[385296343,1757754644355,-400.0,0.00031616,2]
[385296344,1757754644367,-975.18,0.00031616,2]
[385296345,1757754644376,-400.0,0.00031616,2]
[385296346,1757754644385,-400.0,0.00031616,2]
[385296347,1757754644394,-400.0,0.00031616,2]
[385296348,1757754644403,-400.0,0.00031616,2]
[385296349,1757754644412,-529.49,0.00031616,2]
[385296350,1757754644421,-587.99,0.00031616,2]
[385296351,1757754644430,-430.17,0.00031616,2]
[385296352,1757754644439,-358.28711509,0.00031616,2]
[385296353,1757754644449,-409.25812834,0.00031616,2]
[385296354,1757754644458,-400.0,0.00031616,2]
[385296355,1757754644467,-400.0,0.00031616,2]
[385296356,1757754644477,-400.0,0.00031616,2]
[385296357,1757754644486,-488.95,0.00031616,2]
[385296358,1757754644495,-400.0,0.00031616,2]
[385296359,1757754644504,-400.0,0.00031616,2]
[385296360,1757754644513,-400.0,0.00031616,2]
[385296361,1757754644522,-954.54,0.00031616,2]
[385296362,1757754644531,-490.29,0.00031616,2]
[385296363,1757754644542,-400.0,0.00031616,2]
[385296364,1757754644553,-400.0,0.00031616,2]
[385296365,1757754644562,-400.0,0.00031616,2]
[385296366,1757754644571,-400.0,0.00031616,2]
[385296367,1757754644581,-1617.42,0.00031616,2]
[385296368,1757754644590,-591.93,0.00031616,2]
[385296369,1757754644600,-4296.590189,0.00031616,2]
[385296370,1757754644610,-405.03,0.00031616,2]
[385296371,1757754644619,-400.0,0.00031616,2]
[385296372,1757754644628,-150.866427,0.00031616,2]
[385296373,1757754644639,-3087.512152,0.00031616,2]
[385296374,1757754644648,-400.0,0.00031616,2]
[385296375,1757754644657,-752.75,0.00031616,2]
[385296376,1757754644667,-400.0,0.00031616,2]
[385296377,1757754644676,-400.0,0.00031616,2]
[385296378,1757754644686,-400.0,0.00031616,2]
[385296379,1757754644695,-610.06,0.00031616,2]
[385296380,1757754644704,-400.0,0.00031616,2]
[385296381,1757754644714,-3875.254146,0.00031616,2]
[385296382,1757754644724,-404.86242425,0.00031616,2]
[385296383,1757754644734,-400.0,0.00031616,2]
[385296384,1757754644748,-480.28,0.00031616,2]
[385296385,1757754644758,-400.0,0.00031616,2]
[385296386,1757754644768,-584.71,0.00031616,2]
[385296387,1757754644777,-155.10388774,0.00031616,2]
[385296388,1757754644788,-400.0,0.00031616,2]
[385296389,1757754644797,-400.0,0.00031616,2]
[385296390,1757754644807,-400.0,0.00031616,2]
[385296391,1757754644817,-294.35538513,0.00031616,2]
[385296392,1757754644829,-400.0,0.00031616,2]
[385296393,1757754644839,-449.79,0.00031616,2]
[385296394,1757754644849,-400.0,0.00031616,2]
[385296395,1757754644858,-400.0,0.00031616,2]
[385296396,1757754644868,-1000.0,0.00031616,2]
[385296397,1757754644877,-400.0,0.00031616,2]
[385296398,1757754644887,-959.72,0.00031616,2]
[385296399,1757754644897,-400.0,0.00031616,2]
[385296400,1757754644906,-400.0,0.00031616,2]
[385296401,1757754644917,-1000.0,0.00031616,2]
[385296402,1757754644926,-798.54,0.00031616,2]
[385296403,1757754644936,-523.07,0.00031616,2]
[385296404,1757754644945,-400.0,0.00031616,2]
[385296405,1757754644955,-497.4,0.00031616,2]
[385296406,1757754644965,-400.0,0.00031616,2]
[385296407,1757754644975,-475.19,0.00031616,2]
[385296408,1757754644985,-646.54,0.00031616,2]
[385296409,1757754644994,-476.54,0.00031616,2]
[385296410,1757754645005,-1442.98,0.00031616,2]
[385296411,1757754645015,-464.25,0.00031616,2]
[385296412,1757754645027,-1214.24,0.00031616,2]
[385296413,1757754645036,-750.67,0.00031616,2]
[385296414,1757754645046,-562.48,0.00031616,2]
[385296415,1757754645055,-795.58,0.00031616,2]
[385296416,1757754645065,-703.3,0.00031616,2]
[385296417,1757754645074,-381.26728798,0.00031616,2]
[385296418,1757754645083,-400.0,0.00031616,2]
[385296419,1757754645095,-400.0,0.00031616,2]
[385296420,1757754645105,-400.0,0.00031616,2]
[385296421,1757754645115,-424.42,0.00031616,2]
[385296422,1757754645125,-769.96,0.00031616,2]
[385296423,1757754645134,-420.75,0.00031616,2]
[385296424,1757754645144,-400.0,0.00031616,2]
[385296425,1757754645153,-400.0,0.00031616,2]
[385296426,1757754645166,-400.0,0.00031616,2]
[385296427,1757754645176,-400.0,0.00031616,2]
[385296428,1757754645433,-400.0,0.00031616,2]
[385296429,1757754645443,-737.36,0.00031616,2]
[385296430,1757754645453,-749.85,0.00031616,2]
[385296431,1757754645463,-550.27,0.00031616,2]
[385296432,1757754645472,-400.0,0.00031616,2]
[385296433,1757754645482,-400.0,0.00031616,2]
[385296434,1757754645491,-400.0,0.00031616,2]
[385296435,1757754645501,-665.26,0.00031616,2]
[385296436,1757754645510,-454.48,0.00031616,2]
[385296437,1757754645520,-480.03,0.00031616,2]
[385296438,1757754645529,-400.0,0.00031616,2]
[385296439,1757754645539,-2092.12,0.00031616,2]
[385296440,1757754645548,-400.0,0.00031616,2]
[385296441,1757754645558,-2331.56,0.00031616,2]
[385296442,1757754645567,-400.0,0.00031616,2]
[385296443,1757754645577,-400.0,0.00031616,2]
[385296444,1757754645586,-400.0,0.00031616,2]
[385296445,1757754645596,-400.0,0.00031616,2]
[385296446,1757754645606,-488.78,0.00031616,2]
[385296447,1757754645616,-577.8,0.00031616,2]
[385296448,1757754645625,-506.5253546,0.00031616,2]
[385296449,1757754645635,-1335.52,0.00031616,2]
[385296450,1757754645645,-400.0,0.00031616,2]
[385296451,1757754645655,-176.04472651,0.00031616,2]
[385296452,1757754645664,-423.89,0.00031616,2]
[385296453,1757754645674,-400.0,0.00031616,2]
[385296454,1757754645683,-527.13,0.00031616,2]
[385296455,1757754645692,-588.96,0.00031616,2]
[385296456,1757754645702,-400.0,0.00031616,2]
[385296457,1757754645711,-869.55,0.00031616,2]
[385296458,1757754645721,-400.0,0.00031616,2]
[385296459,1757754645731,-400.0,0.00031616,2]
[385296460,1757754645742,-400.0,0.00031616,2]
[385296461,1757754645755,-791.68,0.00031616,2]
[385296462,1757754645765,-661.99,0.00031616,2]
[385296463,1757754645774,-400.0,0.00031616,2]
[385296464,1757754645784,-400.0,0.00031616,2]
[385296465,1757754645794,-400.0,0.00031616,2]
[385296466,1757754645804,-1018.06,0.00031616,2]
[385296467,1757754645813,-1415.87,0.00031616,2]
[385296468,1757754645823,-400.0,0.00031616,2]
[385296469,1757754645834,-400.0,0.00031616,2]
[385296470,1757754645843,-400.0,0.00031616,2]
[385296471,1757754645854,-594.03,0.00031616,2]
[385296472,1757754645863,-400.0,0.00031616,2]
[385296473,1757754645874,-442.11,0.00031616,2]
[385296474,1757754645883,-588.11,0.00031616,2]
[385296475,1757754645892,-400.0,0.00031616,2]
[385296477,1757754645901,-400.0,0.00031616,2]
[385296478,1757754645910,-400.0,0.00031616,2]
[385296479,1757754645919,-423.55,0.00031616,2]
[385296480,1757754645928,-400.0,0.00031616,2]
[385296481,1757754645938,-400.0,0.00031616,2]
[385296482,1757754645947,-400.0,0.00031616,2]
[385296484,1757754645956,-644.57,0.00031616,2]
[385296485,1757754645964,-414.4117019,0.00031616,2]
[385296486,1757754645972,-400.0,0.00031616,2]
[385296487,1757754645980,-400.0,0.00031616,2]
[385296488,1757754645988,-1081.58,0.00031616,2]
[385296489,1757754645995,-400.0,0.00031616,2]
[385296490,1757754646003,-459.36,0.00031616,2]
[385296491,1757754646011,-699.13,0.00031616,2]
[385296492,1757754646020,-400.0,0.00031616,2]
[385296493,1757754646028,-400.0,0.00031616,2]
[385296494,1757754646035,-877.2,0.00031616,2]
[385296495,1757754646043,-693.72,0.00031616,2]
[385296496,1757754646052,-400.0,0.00031616,2]
[385296497,1757754646061,-400.0,0.00031616,2]
[385296498,1757754646070,-575.38,0.00031616,2]
[385296499,1757754646078,-400.0,0.00031616,2]
[385296500,1757754646087,-460.33,0.00031616,2]
[385296501,1757754646096,-1400.17,0.00031616,2]
[385296502,1757754646105,-400.0,0.00031616,2]
[385296503,1757754646114,-400.0,0.00031616,2]
[385296504,1757754646123,-400.0,0.00031616,2]
[385296505,1757754646131,-917.1,0.00031616,2]
[385296506,1757754646140,-400.0,0.00031616,2]
[385296507,1757754646150,-400.0,0.00031616,2]
[385296508,1757754646160,-400.0,0.00031616,2]
[385296509,1757754646169,-400.0,0.00031616,2]
[385296510,1757754646178,-2400.6,0.00031616,2]
[385296511,1757754646188,-400.0,0.00031616,2]
[385296512,1757754646197,-400.0,0.00031616,2]
[385296513,1757754646206,-400.0,0.00031616,2]
[385296514,1757754646215,-406.64096845,0.00031616,2]
[385296515,1757754646224,-400.0,0.00031616,2]
[385296516,1757754646233,-400.0,0.00031616,2]
[385296517,1757754646242,-568.93,0.00031616,2]
[385296518,1757754646251,-467.89,0.00031616,2]
[385296519,1757754646260,-400.0,0.00031616,2]
[385296520,1757754646268,-400.0,0.00031616,2]
[385296521,1757754646278,-403.91429711,0.00031616,2]
[385296522,1757754646287,-558.6,0.00031616,2]
[385296523,1757754646296,-400.0,0.00031616,2]
[385296524,1757754646306,-451.84,0.00031616,2]
[385296525,1757754646315,-400.0,0.00031616,2]
[385296526,1757754646324,-400.0,0.00031616,2]
[385296527,1757754646334,-1264.3,0.00031616,2]
[385296528,1757754646343,-400.0,0.00031616,2]
[385296529,1757754646353,-422.63,0.00031616,2]
[385296530,1757754646363,-400.0,0.00031616,2]
[385296531,1757754646373,-400.0,0.00031616,2]
[385296532,1757754646382,-400.0,0.00031616,2]
[385296533,1757754646395,-543.0,0.00031616,2]
[385296534,1757754646404,-400.0,0.00031616,2]
[385296535,1757754646413,-400.0,0.00031616,2]
[385296536,1757754646422,-400.0,0.00031616,2]
[385296537,1757754646431,-400.0,0.00031616,2]
[385296538,1757754646441,-514.97,0.00031616,2]
[385296539,1757754646450,-515.48408722,0.00031616,2]
[385296540,1757754646458,-400.0,0.00031616,2]
[385296541,1757754646468,-400.0,0.00031616,2]
[385296542,1757754646477,-620.93,0.00031616,2]
[385296543,1757754646486,-2571.97,0.00031616,2]
[385296544,1757754646495,-464.26,0.00031616,2]
[385296545,1757754646504,-400.0,0.00031616,2]
[385296546,1757754646513,-535.5,0.00031616,2]
[385296547,1757754646522,-400.0,0.00031616,2]
[385296548,1757754646532,-643.07,0.00031616,2]
[385296549,1757754646542,-500.0,0.00031616,2]
[385296550,1757754646551,-400.0,0.00031616,2]
[385296551,1757754646560,-400.0,0.00031616,2]
[385296552,1757754646569,-404.35888954,0.00031616,2]
[385296553,1757754646578,-1296.85,0.00031616,2]
[385296554,1757754646590,-400.0,0.00031616,2]
[385296555,1757754646599,-515.93,0.00031616,2]
[385296556,1757754646609,-400.0,0.00031616,2]
[385296557,1757754646622,-400.0,0.00031616,2]
[385296558,1757754646634,-1261.21,0.00031616,2]
[385296560,1757754646643,-400.0,0.00031616,2]
[385296561,1757754646652,-400.0,0.00031616,2]
[385296562,1757754646666,-400.0,0.00031616,2]
[385296563,1757754646677,-400.0,0.00031616,2]
[385296564,1757754646686,-400.0,0.00031616,2]
[385296566,1757754646695,-905.21,0.00031616,2]
[385296567,1757754646704,-515.88,0.00031616,2]
[385296568,1757754646713,-400.0,0.00031616,2]
[385296569,1757754646722,-400.0,0.00031616,2]
[385296570,1757754646731,-402.70487686,0.00031616,2]
[385296571,1757754646742,-400.0,0.00031616,2]
[385296572,1757754646754,-4597.87230746,0.00031616,2]
[385296573,1757754646763,-668.43,0.00031617,2]
[385296574,1757754646772,-404.83808001,0.00031617,2]
[385296575,1757754646781,-400.0,0.00031617,2]
[385296576,1757754646793,-655.15,0.00031617,2]
[385296578,1757754646802,-717.74,0.00031617,2]
[385296579,1757754646813,-531.28,0.00031617,2]
[385296580,1757754646823,-588.71,0.00031617,2]
[385296581,1757754646833,-848.93,0.00031617,2]
[385296582,1757754646842,-528.96,0.00031617,2]
[385296583,1757754646852,-400.0,0.00031617,2]
[385296584,1757754646862,-400.0,0.00031617,2]
[385296585,1757754646872,-553.22,0.00031617,2]
[385296586,1757754646882,-400.0,0.00031617,2]
[385296587,1757754646892,-486.1,0.00031617,2]
[385296588,1757754646901,-590.31,0.00031617,2]
[385296589,1757754646911,-400.0,0.00031617,2]
[385296590,1757754646920,-400.0,0.00031617,2]
[385296591,1757754646928,-639.89,0.00031617,2]
[385296592,1757754646938,-400.0,0.00031617,2]
[385296593,1757754646947,-514.05,0.00031617,2]
[385296594,1757754646957,-556.36,0.00031617,2]
[385296595,1757754646967,-583.98,0.00031617,2]
[385296596,1757754646977,-497.46,0.00031617,2]
[385296597,1757754646987,-504.68,0.00031617,2]
[385296598,1757754646996,-561.83,0.00031617,2]
[385296599,1757754647006,-553.09,0.00031617,2]
[385296600,1757754647016,-484.52,0.00031617,2]
[385296601,1757754647026,-400.0,0.00031617,2]
[385296602,1757754647036,-400.0,0.00031617,2]
[385296603,1757754647049,-440.82,0.00031617,2]
[385296604,1757754647058,-494.59,0.00031617,2]
[385296605,1757754647068,-452.43,0.00031617,2]
[385296606,1757754647077,-425.78,0.00031617,2]
[385296607,1757754647086,-933.38,0.00031617,2]
[385296608,1757754647095,-692.16,0.00031617,2]
[385296609,1757754647104,-591.53,0.00031617,2]
[385296610,1757754647114,-400.0,0.00031617,2]
[385296611,1757754647123,-563.55,0.00031617,2]
[385296612,1757754647132,-446.9,0.00031617,2]
[385296613,1757754647141,-412.35,0.00031617,2]
[385296614,1757754647151,-400.0,0.00031617,2]
[385296615,1757754647160,-417.99,0.00031617,2]
[385296616,1757754647169,-400.0,0.00031617,2]
[385296617,1757754647179,-400.0,0.00031617,2]
[385296618,1757754647189,-604.69,0.00031617,2]
[385296619,1757754647198,-674.18,0.00031617,2]
[385296620,1757754647207,-627.93,0.00031617,2]
[385296621,1757754647217,-400.0,0.00031617,2]
[385296622,1757754647226,-864.54,0.00031617,2]
[385296623,1757754647236,-400.0,0.00031617,2]
[385296624,1757754647245,-516.01,0.00031617,2]
[385296625,1757754647254,-400.0,0.00031617,2]
[385296626,1757754647263,-400.0,0.00031617,2]
[385296627,1757754647273,-707.3,0.00031617,2]
[385296628,1757754647283,-512.11,0.00031617,2]
[385296629,1757754647292,-547.92,0.00031617,2]
[385296630,1757754647302,-829.15,0.00031617,2]
[385296631,1757754647312,-400.0,0.00031617,2]
[385296632,1757754647322,-547.3,0.00031617,2]
[385296633,1757754647331,-662.62,0.00031617,2]
[385296634,1757754647340,-439.71,0.00031617,2]
[385296635,1757754647350,-977.3,0.00031617,2]
[385296636,1757754647364,-524.68,0.00031617,2]
[385296637,1757754647376,-540.9,0.00031617,2]
[385296638,1757754647385,-581.73,0.00031617,2]
[385296639,1757754647394,-609.49,0.00031617,2]
[385296640,1757754647403,-667.38,0.00031617,2]
[385296641,1757754647412,-400.0,0.00031617,2]
[385296642,1757754647422,-574.7,0.00031617,2]
[385296643,1757754647431,-576.05,0.00031617,2]
[385296644,1757754647441,-603.13,0.00031617,2]
[385296645,1757754647450,-552.06,0.00031617,2]
[385296646,1757754647459,-611.71,0.00031617,2]
[385296647,1757754647469,-638.91,0.00031617,2]
[385296648,1757754647478,-499.52,0.00031617,2]
[385296649,1757754647487,-523.51,0.00031617,2]
[385296650,1757754647496,-871.26,0.00031617,2]
[385296651,1757754647505,-515.49,0.00031617,2]
[385296652,1757754647515,-645.98,0.00031617,2]
[385296653,1757754647524,-598.79,0.00031617,2]
[385296654,1757754647533,-419.78,0.00031617,2]
[385296655,1757754647543,-538.71,0.00031617,2]
[385296656,1757754647552,-686.36,0.00031617,2]
[385296657,1757754647563,-858.47,0.00031617,2]
[385296658,1757754647572,-406.22,0.00031617,2]
[385296659,1757754647581,-510.39,0.00031617,2]
[385296660,1757754647590,-400.0,0.00031617,2]
[385296661,1757754647600,-471.22,0.00031617,2]
[385296662,1757754647609,-580.47,0.00031617,2]
[385296663,1757754647618,-498.65,0.00031617,2]
[385296664,1757754647628,-1779.28,0.00031617,2]
[385296665,1757754647638,-480.21,0.00031617,2]
[385296666,1757754647647,-412.84,0.00031617,2]
[385296667,1757754647657,-482.51,0.00031617,2]
[385296668,1757754647666,-930.64,0.00031617,2]
[385296669,1757754647677,-416.06,0.00031617,2]
[385296670,1757754647687,-400.0,0.00031617,2]
[385296671,1757754647698,-433.65,0.00031617,2]
[385296672,1757754647708,-427.22,0.00031617,2]